Cogmind - Beta 9.4 @@@ ROGUE MODE // 2020.01.22 @ 06:26:10 Player: alice_fexa Result: Destroyed by G-47 Trooper with Particle Gun Performance ------------- Evolutions (0) 0 Regions Visited (1) 200 Robots Destroyed (4) 20 Value Destroyed (111) 111 Prototype IDs (0) 0 Alien Tech Used (0) 0 Bonus (0) 0 TOTAL SCORE: 331 Bonus ------- None Cogmind --------- Core Integrity 0/250 Matter 277/300 Energy 100/100 System Corruption 0% Temperature Cool (9) Movement Core (150) Ox2 Location -10/Materials Parts ------- > --- POWER (1) -------- (None) > --- PROPULSION (2) --- (None) > --- UTILITY (2) ------ Improved Heat Sink Small Storage Unit > --- WEAPON (2) ------- Light Cannon > --- INVENTORY (6) ---- Ion Engine Light Ion Engine Light Treads Compact Wheel Peak State ------------ > --- POWER ------------ Ion Engine > --- PROPULSION ------- Light Treads Compact Wheel > --- UTILITY ---------- Improved Heat Sink Small Storage Unit > --- WEAPON ----------- Small Laser Light Assault Rifle > --- INVENTORY -------- Light Ion Engine Light Treads Compact Wheel [Rating: 9] Favorites ----------- Power Ion Engine Engine Ion Engine Propulsion Compact Wheel Treads Light Treads Wheel Compact Wheel Utility Small Storage Unit Device Improved Heat Sink Storage Small Storage Unit Weapon Light Assault Rifle Energy Gun EM Pulse Gun Ballistic Gun Light Assault Rifle Ballistic Cannon Light Cannon Build | -11 -10 ------- Run | Scr Mat Slots Evolved . | . . Power . | . . Propulsion . | . . Utility . | . . Weapon . | . . Parts Attached 13 | 6 7 Power 2 | 1 1 Engine 2 | 1 1 Core . | . . Reactor . | . . Propulsion 2 | 2 . Treads 1 | 1 . Leg . | . . Wheel 1 | 1 . Hover . | . . Flight . | . . Utility 3 | 1 2 Device 2 | . 2 Storage 1 | 1 . Processor . | . . Hackware . | . . Protection . | . . Artifact . | . . Weapon 6 | 2 4 Energy Gun 2 | 1 1 Energy Cannon . | . . Ballistic Gun 3 | 1 2 Ballistic Cannon 1 | . 1 Launcher . | . . Special Weapon . | . . Impact Weapon . | . . Slashing Weapon . | . . Piercing Weapon . | . . Special Melee Weapon . | . . Unidentified Prototypes . | . . Parts Lost 8 | . 8 Power 1 | . 1 Propulsion 2 | . 2 Utility . | . . Weapon 5 | . 5 Highest Loss Streak 7 | . 7 Average Slot Usage (%) 81 | . 81 Engine 11 | . 11 Treads 9 | . 9 Wheel 11 | . 11 Device 13 | . 13 Storage 14 | . 14 Energy Gun 9 | . 9 Ballistic Gun 11 | . 11 Naked Turns . | . . Heaviest Build 13 | 12 13 Greatest Support 20 | 20 16 Greatest Overweight (x) 2 | . 2 Average Overweight (x) . | . . Largest Inventory Capacity 6 | 6 6 Average Capacity 5 | 5 6 Most Carried 4 | 4 4 Average Carried 3 | 2 3 Final Capacity 6 | 6 6 Final Carried 4 | 4 4 Class Distribution -------------------- 100% | Mutant Dominant Class ---------------- Mutant | -10/Materials Resources | -11 -10 ----------- Run | Scr Mat Matter Collected 309 | 260 49 Remotely . | . . Salvage Created 127 | . 127 Parts 7 | . 7 Haulers Intercepted . | . . Recyclers Shooed . | . . Parts Field Recycled . | . . Retrieved Matter . | . . Parts Self-Destructed . | . . Prevented . | . . Kills | -11 -10 ------- Run | Scr Mat Combat Hostiles Destroyed 4 | . 4 Guns 4 | . 4 Classes Destroyed 2 | . 2 Swarmer 2 | . 2 Grunt 2 | . 2 Best Kill Streak 2 | . 2 Combat Bots Only 2 | . 2 Max Kills in Single Turn 1 | . 1 Gunslinging . | . . Exploded . | . . Melee . | . . Uniques/NPCs Destroyed . | . . Combat | -11 -10 -------- Run | Scr Mat Damage Taken 982 | . 982 Core 259 | . 259 Absorbed by Shields . | . . Core Remaining (%) 100 | 100 . Volleys Fired 24 | . 24 Largest 2 | . 2 Hottest 60 | . 60 Shots Fired 41 | . 41 Gun 38 | . 38 Cannon 3 | . 3 Launcher . | . . Special . | . . Kinetic 25 | . 25 Thermal 8 | . 8 Explosive . | . . Electromagnetic 8 | . 8 Robot Hit Streak 19 | . 19 Robot Miss Streak 2 | . 2 Penetration Max . | . . Secondary Targets 2 | . 2 Max Gunslinging Chain 1 | . 1 Shots Hit Robots 33 | . 33 Core Hits 11 | . 11 Critical Hits 1 | . 1 Critical Kills . | . . Critical Parts Destroyed 1 | . 1 Melee Attacks . | . . Impact . | . . Slashing . | . . Piercing . | . . Sneak Attacks . | . . Combat Hostiles . | . . Follow-up Attacks . | . . Damage Inflicted 327 | . 327 Guns 268 | . 268 Cannons 49 | . 49 Explosions . | . . Melee . | . . Ramming 10 | . 10 Kinetic 191 | . 191 Thermal 66 | . 66 Explosive . | . . Electromagnetic 60 | . 60 Impact . | . . Slashing . | . . Piercing . | . . Highest Corruption . | . . Average Corruption . | . . Corruption Purged . | . . Overload Shots . | . . Overflow Damage . | . . Projectiles . | . . Explosions . | . . Melee . | . . Knockbacks . | . . Impact . | . . Kinetic . | . . Secondary . | . . Self-Inflicted Damage 4 | . 4 Shots . | . . Rammed 3 | . 3 Targets Rammed 3 | . 3 Kicked . | . . Crushed . | . . Highest Temperature 128 | . 128 Average Temperature 55 | . 55 Received Heat Transfer 486 | . 486 Siege Activations . | . . Robots Corrupted . | . . Combat Hostiles . | . . Parts Fried . | . . Impact Corruptions . | . . Robots Melted . | . . Combat Hostiles . | . . Parts Melted 1 | . 1 Heat Transferred 150 | . 150 Parts Sabotaged . | . . Parts Stolen . | . . Parts Stripped . | . . Power Chain Reactions . | . . Missiles Intercepted . | . . Alert | -11 -10 ------- Run | Scr Mat Peak Influence 110 | . 110 Average Influence 41 | . 57 Maximum Alert Level . | . . Low Security (%) 100 | 100 100 Level 1 . | . . Level 2 . | . . Level 3 . | . . Level 4 . | . . Level 5 . | . . High Security . | . . Max Security . | . . Squads Dispatched 3 | . 3 Investigation 1 | . 1 Extermination . | . . Reinforcement 2 | . 2 Assault . | . . Garrison . | . . Intercept . | . . Construction Impeded . | . . Haulers Reinforced . | . . Stealth | -11 -10 --------- Run | Scr Mat Distress Signals . | . . Communications Jammed . | . . Distress Signals . | . . Times Spotted 14 | . 14 Peak Tracking Total 7 | . 7 Tactical Retreats . | . . Traps | -11 -10 ------- Run | Scr Mat Traps Triggered 1 | . 1 Indirectly . | . . Trap Hack Attempts . | . . Triggered . | . . Disarmed . | . . Reprogrammed . | . . Reused . | . . Traps Extracted . | . . Installed . | . . Triggered . | . . Machines | -11 -10 ---------- Run | Scr Mat Machines Disabled 1 | . 1 Max in Single Turn 1 | . 1 Machines Sabotaged . | . . Garrisons Compromised . | . . Overloaded Fab Kills . | . . Fab Network Shutdowns . | . . Hacking | -11 -10 --------- Run | Scr Mat Machines Accessed . | . . Terminals . | . . Fabricators . | . . Repair Stations . | . . Recycling Units . | . . Scanalyzers . | . . Garrison Access . | . . Total Hacks . | . . Successful . | . . Failed . | . . Catastrophic . | . . Database Lockouts . | . . Manual . | . . Terminals . | . . Fabricators . | . . Repair Stations . | . . Recycling Units . | . . Scanalyzers . | . . Garrison Access . | . . Terminal Hacks . | . . Fabricator Hacks . | . . Repair Station Hacks . | . . Recycling Unit Hacks . | . . Scanalyzer . | . . Garrison Access Hacks . | . . Unauthorized Hacks . | . . Terminals . | . . Fabricators . | . . Repair Stations . | . . Recycling Units . | . . Scanalyzers . | . . Garrison Access . | . . Data Cores Recovered . | . . Used . | . . Hacking Detections . | . . Full Trace Events . | . . Feedback Events . | . . Feedback Blocked . | . . Robot Schematics Acquired . | . . Robots Built . | . . Matter . | . . Time . | . . Total Robot Build Rating . | . . Part Schematics Acquired . | . . Parts Built . | . . Matter . | . . Time . | . . Total Part Build Rating . | . . Parts Repaired . | . . Time . | . . Parts Recycled . | . . Recycled Matter . | . . Retrieved Matter . | . . Retrieved Components . | . . Parts Scanalyzed . | . . Part Schematics Acquired . | . . Parts Damaged . | . . Bothacking | -11 -10 ------------ Run | Scr Mat Used RIF Installer . | . . Robots Hacked . | . . Non-combat . | . . Combat . | . . Robot Hacks Applied . | . . Relay Couplers Released . | . . Robots Rewired . | . . Allies Hacked . | . . Hacks Repelled . | . . Allies | -11 -10 -------- Run | Scr Mat Total Allies . | . . Largest Group . | . . Highest-Rated Group . | . . Highest-Rated Ally . | . . Total Orders . | . . Ally Attacks . | . . Total Damage . | . . Kills . | . . Allies Corrupted . | . . Allies Melted . | . . Intel | -11 -10 ------- Run | Scr Mat Robot Analysis Total . | . . Derelict Logs Recovered . | . . Drone Launches . | . . Drone Recoveries . | . . Exploration | -11 -10 ------------- Run | Scr Mat Turns Passed 215 | 59 156 Spaces Moved 120 | 42 78 Core 23 | 2 21 Treads 1 | 1 . Legs . | . . Wheels 96 | 39 57 Hover . | . . Flight . | . . Fastest Speed 50 | 50 100 Average Speed 100 | 99 101 Slowest Speed 160 | 160 150 Overloaded Moves . | . . Propulsion Burnouts . | . . Robots Hopped . | . . Cave-ins Triggered . | . . Exploration Rate (%) 14 | 3 26 Regions Visited 1 Branch Regions . Pre-discovered Areas . | . . Known Exits Taken . | . . Unknown Exits Taken 1 | 1 . Scrap Searched . | . . Spaces Dug . | . . Terrain Destroyed . | . . Melee . | . . Projectile . | . . AOE . | . . Actions | -11 -10 --------- Run | Scr Mat Total 172 | 56 116 Wait 7 | 4 3 Move 119 | 41 78 Hop . | . . Pick Up 5 | 5 . Fast Attach 10 | 5 5 Attach 2 | 1 1 Detach . | . . Swap 1 | . 1 Drop 1 | . 1 Fire 24 | . 24 Melee . | . . Ram 3 | . 3 Kick . | . . Crush . | . . Escape Stasis . | . . Rewire . | . . Trap . | . . Miscellaneous . | . . Route ------- -11/Scrapyard -10/Materials History --------- Turn | Location | Event 33 | -11/Scrapyard | Discovered new exit (range 16) 60 | -11/Scrapyard | Entered Materials 182 | -10/Materials | Core integrity fell below 50% 191 | -10/Materials | Core integrity fell below 20% 216 | -10/Materials | Destroyed by G-47 Trooper with Particle Gun Last Messages --------------- 00167_ Slammed into G-34 Mercenary. 00169_ Lgt. Assault Rifle destroyed. 00170_ Acquired Lgt. Assault Rifle. 00173_ Acquired 11 matter. 00174_ K-01 Serf collects debris. 00177_ Acquired Lgt. Assault Rifle. 00180_ Lgt. Assault Rifle destroyed. 00182_ K-01 Serf collects debris. 00184_ Lgt. Assault Rifle destroyed. 00185_ Slammed into G-34 Mercenary. 00186_ K-01 Serf collects debris. 00186_ Lgt. Ion Engine destroyed. 00187_ Com. Wheel destroyed. 00190_ K-01 Serf collects debris. 00197_ Triggered Alarm Trap. 00197_ An alarm sounds. 00197_ ALERT: Alarm triggered, dispatching investigation squad. 00206_ Acquired Lgt. Cannon. 00213_ G-47 Trooper suffers critical hit. 00213_ Destroyed Lgt. Nuclear Core. Map ----- +----------------------------------------------------+ | ??????????????# ! | | ??????????????# | | ??????????????####+###### | | ???????????????? ???# | | ???????????????# #?# | | ???????????????# #?# | | ???????????????# "Y" #?# "" | | ???????????????# """ #?# "" | | ???????????????# #?# "" | | ????????##????#########?# | | ???????# "?""""" #??????# | | ???????# """"""" ######## | | ???????# """"""" # # | | ???????# """"""" # %%"# | | ???????# """"""" # """=T# | | ???????# # """%"# | | ????#+## / " [%%#= ### | | ????# + # % = /% #?? | | ????# #+###/############ ! #?? | | ????# #????# #?? | | ????# ? | | ????# ##### | | ????# #???## "T" | | ????#g#????# """" """" | | ?####g###### """" """" | | ?# g@ # """" """" | | ?# # | | ?# # ???? | | ?# # """" """" ???? | | ?#####+##+## """" "?"" ???? | | ???????????? "???? "??" ???? | | ???????????? ????? ?? ???? | | ???????????? ????????? ???? | | ???????????? ????????? ???? | | ??????????????????????????????? | | ??????????????????????????????? | | ??????????????????????????????? | | ??????????????????????????????? | | ??????????????????????????????? | | ??????????????????????????????? | | ??????????????????????????????? | | ??????????????????????????????? | | ??????????????????????????????? | | ??????????????????????????????? | | ??????????????????????????????? | | ??????????????????????????????? | | ??????????????????????????????? | | ??????????????????????????????? | | ??????????????????????????????? | | ??????????????????????????????? | +----------------------------------------------------+ Best States ------------- Heat Dissipation 39 Energy Generation 10 Energy Capacity 250 Matter Stores 300 Matter Capacity 300 Sight Range 16 Terrain Scan Density 10 Evasion (%) 40 Recoil Reduction 1 Item Schematics ----------------- None Robot Schematics ------------------ None Fabricated ------------ Nothing Alien Tech Used ----------------- None Achievements -------------- None Challenges ------------ None Game ------ Seed LegTransmissionInsulator Manual? 0 Play Time 00:02:41 Cumulative 654.5 hours Start 2020.01.22 @ 06:24:37 End 2020.01.22 @ 06:26:10 Sessions 1 Manual Loads 0 Difficulty Rogue Special Mode None Game No. 596 Rogue 556 Adventurer 40 Explorer 0 Win Type - Total 52 Types 38/0/12/2/0/0/0 Lore% 88 Gallery% 90 Achievement% 69 Wizard Run 0 Options --------- ASCII 0 Keyboard 0 Movement Numpad Keybinds 0 Fullscreen 0 Font 16/Terminus Map View 76x50 Tactical HUD 1 Map Filters NONE Filters NONE Steam 1 RUN: 19cdd983-c4a9-49c0-90e4-57ad69ae69e6